[Event "Swiss Championship U16 2022"]
[Site "Biel"]
[Date "2022.07.20"]
[Round "6.2"]
[White "Gemelli, Romain"]
[Black "Rotunno, Flavio"]
[Result "1/2-1/2"]
[ECO "E11"]
[WhiteElo "2045"]
[BlackElo "1901"]
[Annotator "TA"]
[PlyCount "90"]
[EventDate "2022.07.18"]
[EventType "swiss"]
[EventCountry "SUI"]
[SourceTitle "playchess.com"]
[Source "ChessBase"]
[SourceQuality "1"]
[TimeControl "5400+30"]

{[%evp 15,90,49,48,17,18,19,10,0,43,35,54,48,50,16,68,3,4,18,0,-71,-58,-94,-76,-72,-76,-70,-70,-87,-94,-123,-93,-105,-98,-98,-74,-80,-54,-63,-43,-37,-37,-52,0,-4,-4,0,0,-77,-81,-77,-79,-77,-76,-76,-76,-86,-78,-94,-95,-102,-109,-141,-112,-133,-95,-107,-96,-104,-94,-123,-26,-358,-37,-41,0,-348,0]} 1. d4 {[%emt 0:00:17]} Nf6 {[%emt 0:00:57]} 2. c4 {[%emt 0:00:07]} e6 {[%emt 0:00:14]} 3. Nf3 {[%emt 0:00:10]} Bb4+ {[%emt 0:00:11]} 4. Nbd2 {[%emt 0:00:14]} O-O {[%emt 0:00:07]} 5. a3 {[%emt 0:00:08]} Be7 {[%emt 0:00:02]} 6. e4 {[%emt 0:00:12]} d6 {[%emt 0:00:10]} 7. Bd3 {[%emt 0:09:18]} Nbd7 {[%emt 0:01:56]} 8. O-O {[%emt 0:04:13]} e5 {[%emt 0:00:15]} 9. d5 {[%emt 0:00:52] E11: Bogo-Indian.} Nc5 {[%emt 0:01:31]} 10. Bc2 {[%emt 0:01:29]} a5 {[%emt 0:00:05]} 11. b3 {[%emt 0:03:27][%cal Bb2b3,Bb3b4][%mdl 32] [#] The position is equal.} Ne8 $146 {[%emt 0:10:10]} ({Predecessor:} 11... c6 12. Bb2 cxd5 13. cxd5 Bd7 14. b4 axb4 15. axb4 Na6 16. Bc3 Qb8 17. Bd3 Rc8 {1-0 (46) Sokolov,I (2588)-Timman,J (2541) Amstelveen 2018}) 12. Bb2 {[%emt 0:04:06]} g6 {[%emt 0:04:37]} 13. b4 {[%emt 0:03:35]} Nd7 {[%emt 0:05:45]} 14. c5 {[%emt 0:09:02]} Ng7 {[%emt 0:20:00]} (14... axb4 $11 15. cxd6 (15. axb4 Rxa1 16. Qxa1 dxc5 $11) 15... Nxd6) 15. c6 {[%emt 0:06:31] White is more active.} (15. Nc4 $14) 15... bxc6 {[%emt 0:03:50]} 16. dxc6 {[%emt 0:00:26]} Nb6 {[%emt 0:03:35]} 17. Bc3 {[%emt 0:02:01]} (17. a4 $11) 17... axb4 $17 {[%emt 0:02:05]} 18. axb4 {[%emt 0:00:43]} Ba6 $1 {[%emt 0:00:52]} 19. Re1 {[%emt 0:09:41]} Bb5 {[%emt 0:00:52]} 20. Ra5 {[%emt 0:02:43]} Bxc6 {[%emt 0:00:48]} 21. Bd3 {[%emt 0:00:58]} Ne6 {[%emt 0:13:49]} 22. Qb3 {[%emt 0:04:34]} Bf6 {[%emt 0:20:43]} 23. Nc4 {[%emt 0:08:00]} Nxc4 {[%emt 0:03:59]} 24. Bxc4 {[%emt 0:00:42]} Qe7 {[%emt 0:03:32]} 25. Bd5 {[%emt 0:04:06]} Bxd5 {[%emt 0:01:08]} 26. exd5 {[%emt 0:00:55]} Ng7 {[%emt 0:01:22]} 27. Nd4 {[%emt 0:00:47]} Qd7 {[%emt 0:00:40]} 28. Nc6 {[%emt 0:00:14]} Nf5 {[%emt 0:00:24]} (28... Nh5 $15) 29. Rea1 $11 {[%emt 0:01:08]} Rac8 {[%emt 0:00:23]} 30. b5 {[%emt 0:02:13]} Ne7 {[%emt 0:00:17]} 31. f4 {[%emt 0:02:23]} (31. Ra7 $11 {keeps the balance.}) 31... Nxc6 {[%emt 0:00:26]} 32. dxc6 {[%emt 0:00:12]} Qf5 {[%emt 0:00:34]} 33. fxe5 {[%emt 0:01:06]} Bxe5 {[%emt 0:00:22]} 34. Bxe5 {[%emt 0:02:36]} Qxe5 {[%emt 0:00:09]} 35. Kh1 {[%emt 0:01:40]} Rb8 {[%emt 0:00:59]} 36. Rb1 {[%emt 0:00:27]} Qc5 {[%emt 0:00:53]} 37. Ra4 {[%emt 0:01:09]} Rfe8 $40 {[%emt 0:00:28][%cal Ob8b5][%mdl 128] aiming for ...Rxb5! Black goes for the king.} 38. h3 {[%emt 0:00:05]} Re3 {[%emt 0:00:23]} 39. Qb2 {[%emt 0:01:07]} Re5 {[%emt 0:00:50][%cal Rb8b5]} 40. Rb4 {[%emt 0:00:55]} Rb6 {[%emt 0:00:22]} 41. Qa2 {[%emt 0:02:25]} Qd5 {[%emt 0:00:37]} 42. Qa7 {[%emt 0:00:20]} Re3 {[%emt 0:00:24]} (42... Re2 $17 {[%csl Ge2][%cal Rd5g2]} 43. Rg1 Rxb5 44. Rxb5 Qxb5 45. Qxc7 Rc2 46. Qxd6 (46. Qd8+ Kg7 $17) 46... Qxc6 47. Qxc6 Rxc6) 43. Kg1 {[%emt 0:00:53][%mdl 8192]} (43. Qxc7 $11 {and White is okay.} Rxh3+ 44. Kg1 Qc5+ 45. Kf1 Rh1+ 46. Ke2) 43... Qc5 $2 {[%emt 0:00:18]} ({Not} 43... Rg3 44. Qa8+ Kg7 45. Qa1+ f6 46. Qb2 $17) (43... Re2 $1 $19 {[%csl Ge2][%cal Rd5g2]} 44. Qa8+ Kg7) 44. Kh1 $15 {[%emt 0:00:46]} Qd5 $2 {[%emt 0:00:35][%mdl 8192]} (44... Re1+ $2 45. Rxe1 Qxb4 46. Re8+ Kg7 47. Qxb6 $3 {[%mdl 512]} cxb6 48. c7 $18) (44... Re7 $15) 45. Kg1 $19 {[%emt 0:00:14] [#]} Qc5 $2 {[%emt 0:00:34] Weighted Error Value: White=0.34/Black=0.29 (precise)} ({Worse is} 45... Rg3 46. Qa8+ Kg7 47. Qa1+ f6 48. Qb2 $17) ({Better is} 45... Re2 $1 $19 {[%csl Ge2][%cal Rd5g2]} 46. Qa8+ Kg7) 1/2-1/2

[Event "Swiss Championship U16 2022"]
[Site "Biel"]
[Date "2022.07.20"]
[Round "6.3"]
[White "Schellenberg, Simon"]
[Black "Zargarov, Mikayel"]
[Result "1-0"]
[ECO "B22"]
[WhiteElo "1899"]
[BlackElo "1994"]
[Annotator "TA"]
[PlyCount "159"]
[EventDate "2022.07.18"]
[EventType "swiss"]
[EventCountry "SUI"]
[SourceTitle "playchess.com"]
[Source "ChessBase"]
[SourceQuality "1"]
[TimeControl "5400+30"]

{[%evp 9,159,-25,119,123,118,115,118,118,120,122,143,142,141,70,97,56,58,23,62,62,64,64,60,36,22,0,19,14,47,59,64,55,73,68,78,66,81,62,75,75,57,58,102,63,73,0,57,25,18,9,8,8,69,75,85,80,133,77,83,40,95,49,61,0,97,-55,-38,-52,-17,-32,-25,-25,0,0,0,0,175,-52,-48,-44,-49,-52,-52,-196,-200,-192,-197,-194,-118,-179,-46,-138,-85,-91,159,145,222,222,222,206,249,227,211,203,372,302,504,442,506,495,904,919,968,946,908,766,673,0,935,388,861,781,563,479,1033,792,1693,1647,1139,859,4820,3145,3365,1895,2945,1152,5600,4485,5628,5085,2483,1221,5679,5600,29974,29974,29978,29977,29983,29984,29984,29985]} 1. Nf3 {[%emt 0:00:12]} c5 {[%emt 0:00:27]} 2. e4 {[%emt 0:01:15]} Nc6 {[%emt 0:01:22]} 3. c3 {[%emt 0:00:30]} d5 {[%emt 0:03:27]} 4. e5 {[%emt 0:00:46]} Bg4 {[%emt 0:00:56]} 5. Bb5 {[%emt 0:05:38]} e6 {[%emt 0:00:26]} (5... Qb6 $11 6. Bxc6+ bxc6) 6. Bxc6+ $16 {[%emt 0:00:13] B22: Sicilian: 2 c3.} bxc6 {[%emt 0:02:30]} 7. Qa4 {[%emt 0:13:57][%csl LRc6,LRg4]} Bxf3 {[%emt 0:02:04]} 8. Qxc6+ {[%emt 0:01:03] White is better.} Ke7 {[%emt 0:13:55]} 9. Qxc5+ {[%emt 0:00:33]} (9. gxf3 $6 Qc8 10. Qa4 f6 $11) 9... Ke8 {[%emt 0:01:36]} 10. Qc6+ {[%emt 0:00:00]} Ke7 {[%emt 0:00:41]} 11. b3 {[%emt 0:10:52]} (11. gxf3 $16 Qc8 12. Qxc8 (12. Qa4 Qd7 $16) 12... Rxc8 13. Na3) 11... f6 {[%emt 0:10:32]} 12. Ba3+ {[%emt 0:00:00]} (12. gxf3 fxe5 13. f4 (13. d4 exd4 14. Bg5+ Nf6 $11) 13... e4 $14) 12... Kf7 {[%emt 0:01:54] [#]} 13. Bxf8 $146 {[%emt 0:01:38]} ({Predecessor:} 13. Qb7+ Be7 14. gxf3 fxe5 15. Rg1 g6 16. Bd6 Kf6 17. Bc7 Qc8 18. Qxc8 Rxc8 19. Ba5 {1-0 (40) Rau,H-Menssen,L Bernkastel-Kues 1995}) 13... Qxf8 {[%emt 0:00:00]} 14. gxf3 {[%emt 0:07:56]} Ne7 {[%emt 0:00:50][%cal Bg8e7,Be7g6,Bg6f4,Bf4d3][%mdl 32]} 15. Qc7 {[%emt 0:00:00]} fxe5 {[%emt 0:04:03]} 16. Qxe5 {[%emt 0:07:22]} Ng6 {[%emt 0:05:35]} 17. Qg3 {[%emt 0:03:06]} Qe7 {[%emt 0:10:12]} 18. h4 $1 {[%emt 0:08:44]} Qf6 {[%emt 0:07:26]} 19. Na3 $1 {[%emt 0:02:56]} Nf4 {[%emt 0:00:52]} 20. Qg5 {[%emt 0:02:15]} Nd3+ {[%emt 0:02:21][%mdl 64] Discovered Attack} 21. Ke2 {[%emt 0:00:00]} Nf4+ {[%emt 0:01:00]} 22. Kd1 {[%emt 0:05:10]} Qxg5 {[%emt 0:01:28]} 23. hxg5 {[%emt 0:00:35]} Kg6 {[%emt 0:02:41]} 24. Rg1 {[%emt 0:02:03]} Rhf8 {[%emt 0:01:56]} 25. Rg4 {[%emt 0:09:29]} Rf7 {[%emt 0:07:12]} 26. Nb5 {[%emt 0:00:38]} Raf8 {[%emt 0:00:55]} 27. Nd4 {[%emt 0:04:43]} (27. Kc2 $16) 27... Rc8 {[%emt 0:06:15]} (27... e5 $11 28. Nc6 Rc7 29. Nxe5+ Kf5) 28. b4 {[%emt 0:02:17] Strongly threatening b5.} e5 {[%emt 0:07:25]} 29. Nb3 {[%emt 0:00:26]} Ne6 {[%emt 0:00:00]} 30. Ke2 {[%emt 0:00:49]} Nxg5 {[%emt 0:01:08]} (30... Rcf8 $11) 31. Rag1 $14 {[%emt 0:00:13]} h6 {[%emt 0:00:30]} 32. Nc5 {[%emt 0:01:36]} Re8 {[%emt 0:01:52] Against Ne6} (32... Kh7 $142) 33. a4 {[%emt 0:00:16]} (33. c4 $142 $1) 33... Kf6 $16 {[%emt 0:02:18]} 34. b5 {[%emt 0:01:47]} Ke7 {[%emt 0:04:20]} ({Black should try} 34... Nh3 $1 $14) 35. a5 {[%emt 0:00:42]} (35. Rb1 $16) 35... Kd6 {[%emt 0:02:49]} 36. Na4 {[%emt 0:02:09]} (36. Na6 $14) 36... e4 {[%emt 0:01:29]} ({Don't play} 36... Nxf3 37. Rg6+ Kc7 38. Rb1 $18) (36... Nh3 $11 {remains equal.}) 37. f4 $2 {[%emt 0:00:39]} (37. fxe4 $16 {[%cal Of2f3]} dxe4 38. d4) 37... Nh3 $1 $15 {[%emt 0:00:55][%csl LRf4,LRg1]} 38. Rb1 {[%emt 0:01:03]} Nxf4+ {[%emt 0:00:00]} (38... g5 $5 {[%cal Rh6h5]}) 39. Ke3 {[%emt 0:00:17]} Ne6 {[%emt 0:03:44] And now ...Rf3+ would win.} 40. b6 {[%emt 0:00:08]} axb6 {[%emt 0:01:58]} 41. Rxb6+ {[%emt 0:00:11]} Kc7 {[%emt 0:00:57]} 42. a6 {[%emt 0:00:56]} Kc8 {[%emt 0:01:57] [#] Prevents Rb7.} (42... Nc5 $2 43. Rgg6 $1 (43. Kd4 Ne6+ 44. Kxd5 Rf5+ 45. Kc4 Ra5 $16) 43... Nxa6 44. Rxa6 $18) (42... Rf3+ $1 $11 43. Ke2 g5) 43. Rg6 $2 {[%emt 0:00:51] Chess con chili.} (43. Rg1 $1 $18 {[%cal Rg1b1]}) 43... Rf3+ {[%emt 0:00:00]} 44. Ke2 {[%emt 0:00:14] Intending a7 and mate.} Nf4+ {[%emt 0:02:13]} 45. Ke1 {[%emt 0:00:46]} Nxg6 {[%emt 0:01:55]} 46. Rxg6 {[%emt 0:00:56][%mdl 4096] Endgame [#] KRR-KRN} (46. a7 $1 $15 Kc7 47. Rxg6) 46... Rf7 $1 $19 {[%emt 0:00:00]} 47. Nb6+ {[%emt 0:00:34]} Kb8 {[%emt 0:00:00]} 48. Nxd5 {[%emt 0:00:43]} Ka7 {[%emt 0:01:40]} (48... h5 $19 {aiming for ...h4.} 49. Kf1 Ref8) 49. Nb4 {[%emt 0:00:39]} (49. c4 $17) 49... Rc8 {[%emt 0:00:50]} (49... h5 $19 {Hoping for ...h4.} 50. Nc6+ Ka8) 50. Ke2 {[%emt 0:00:20]} ({Better is} 50. Re6 $15) 50... Rcc7 {[%emt 0:00:56]} ({Black should play} 50... h5 51. Nc6+ Ka8) 51. Rg4 $17 {[%emt 0:00:28]} Rfe7 $2 {[%emt 0:00:24]} (51... Rc5 $17 {Threatens to win with ...Rcf5.} 52. Rxe4 Rcf5) 52. Nd5 $1 $16 {[%emt 0:03:31][%csl LRc7,LRe7]} Rcd7 {[%emt 0:00:25]} (52... Kxa6 $16 53. Nxe7 (53. Nxc7+ Rxc7 54. Rxe4 Rf7 $16) 53... Rxe7) 53. Nxe7 $18 {[%emt 0:00:27]} Rxe7 {[%emt 0:00:06] KR-KR} 54. Rg6 {[%emt 0:00:17]} h5 {[%emt 0:00:00]} 55. Ke3 {[%emt 0:01:02]} h4 {[%emt 0:00:00]} 56. Rg4 {[%emt 0:00:38][%csl LRe4,LRh4]} h3 {[%emt 0:00:00]} (56... g5 57. Rxg5 Rh7) 57. Rh4 {[%emt 0:00:40]} Kxa6 $2 {[%emt 0:00:00]} (57... Rd7 {might work better.} 58. Ke2 (58. Kxe4 Rxd2 59. Kf3 Rd3+ 60. Kg4 Rxc3 $11) 58... Rd3 59. Rxe4 Rd6) 58. Rxh3 {[%emt 0:00:13]} Kb6 {[%emt 0:00:00]} 59. Rh4 {[%emt 0:00:13]} Kc5 {[%emt 0:00:00]} (59... Rc7 $142 60. Rxe4 Kb5 61. Rb4+ Ka5) 60. Rxe4 {[%emt 0:00:07]} Rf7 {[%emt 0:00:29]} 61. f4 {[%emt 0:00:35]} Kd6 {[%emt 0:00:28]} 62. Kd4 {[%emt 0:01:00]} Rf5 {[%emt 0:00:59]} 63. Ke3 $2 {[%emt 0:00:35]} (63. c4 $18 Kc6 64. Ke3) 63... Rh5 $2 {[%emt 0:00:11][%mdl 8192]} (63... Rf7 $11 64. Re5 Rc7) 64. Ra4 {[%emt 0:00:12]} (64. Re5 $142 Rh3+ 65. Ke4) 64... Rh2 $2 {[%emt 0:00:22]} (64... g5 65. fxg5 Rxg5) 65. d3 {[%emt 0:01:07]} Rh1 {[%emt 0:00:35]} 66. Kd4 {[%emt 0:00:28]} Re1 {[%emt 0:00:03]} (66... Rf1 $142 67. Ra6+ Ke7) 67. Ra6+ {[%emt 0:00:00]} Ke7 {[%emt 0:00:41]} 68. c4 {[%emt 0:00:00][%cal Bc3c4,Bc4c5][%mdl 32]} Rf1 {[%emt 0:00:41]} 69. Ra7+ {[%emt 0:00:24]} Kf6 {[%emt 0:00:55]} 70. Kd5 {[%emt 0:00:08]} Rxf4 {[%emt 0:00:00]} 71. c5 {[%emt 0:00:36]} Rf5+ {[%emt 0:00:48]} 72. Kc4 {[%emt 0:00:32]} (72. Kd6 $142 Rf4 73. Rd7) 72... Rf1 {[%emt 0:00:00]} 73. d4 {[%emt 0:00:12][%cal Bd3d4,Bd4d5][%mdl 32]} g5 {[%emt 0:00:50]} 74. Ra2 {[%emt 0:00:00]} g4 {[%emt 0:01:00]} 75. Rg2 {[%emt 0:00:00]} (75. d5 $142 Rd1 76. d6) 75... Rf4 {[%emt 0:00:00]} 76. Kd5 {[%emt 0:00:52] White wants to mate with c6.} Rf5+ {[%emt 0:00:00]} 77. Kd6 {[%emt 0:00:40] White mates.} Rf4 {[%emt 0:00:00]} 78. d5 {[%emt 0:00:28]} Kf7 {[%emt 0:00:15]} 79. c6 {[%emt 0:00:24]} Rf6+ {[%emt 0:00:35]} 80. Kd7 {[%emt 0:00:13] Quite a comeback for White.  Weighted Error Value: White=0.30/Black=0.50} 1-0

[Event "Swiss Championship U16 2022"]
[Site "Biel"]
[Date "2022.07.20"]
[Round "6.4"]
[White "Erne, Raphael"]
[Black "Hirzel, Cedric"]
[Result "1-0"]
[ECO "A25"]
[WhiteElo "2060"]
[BlackElo "1649"]
[Annotator "TA"]
[PlyCount "87"]
[EventDate "2022.07.18"]
[EventType "swiss"]
[EventCountry "SUI"]
[SourceTitle "playchess.com"]
[Source "ChessBase"]
[SourceQuality "1"]
[TimeControl "5400+30"]

{[%evp 10,87,22,21,27,33,27,13,24,25,21,-1,25,10,30,14,6,0,4,0,29,-6,0,-42,-28,-49,24,24,29,2,1,10,19,19,19,16,17,17,17,17,13,6,3,3,7,0,0,0,0,0,0,0,0,0,0,0,0,0,0,0,0,0,0,0,0,0,0,0,3,3,3,0,112,112,112,112,29975,29976,29975,29976]} 1. c4 {[%emt 0:00:09]} e5 {[%emt 0:00:11]} 2. g3 {[%emt 0:00:02]} Nf6 {[%emt 0:00:05]} 3. Bg2 {[%emt 0:00:07]} Nc6 {[%emt 0:00:04]} 4. Nc3 {[%emt 0:00:09]} Bc5 {[%emt 0:00:45]} 5. e3 {[%emt 0:00:41]} d6 {[%emt 0:00:00]} 6. Nge2 {[%emt 0:00:22]} h6 {[%emt 0:01:31] A25: English Opening vs King's Indian with ...Nc6 but without early d3.} 7. d4 {[%emt 0:01:21]} exd4 {[%emt 0:00:19]} 8. exd4 {[%emt 0:00:15]} Bb6 {[%emt 0:00:41] The position is equal.} 9. O-O {[%emt 0:00:16][%cal Ob2b4]} O-O {[%emt 0:03:42]} 10. h3 {[%emt 0:01:38] [#]} Rb8 $146 {[%emt 0:00:58]} ({Predecessor:} 10... Bf5 11. a3 Qd7 12. Kh2 Rab8 13. b4 a6 14. Be3 Ne7 15. Qd2 d5 16. c5 Ba7 {½-½ (59) Robakowska,P (1297)-Dabrowska,A (1296) Iwonicz 2015}) 11. Be3 {[%emt 0:02:17]} a6 {[%emt 0:07:42]} 12. Nf4 {[%emt 0:01:09]} Ne7 {[%emt 0:12:38]} 13. Re1 {[%emt 0:07:42]} c6 {[%emt 0:05:45]} 14. b4 {[%emt 0:10:20]} Re8 {[%emt 0:10:50]} 15. c5 {[%emt 0:04:54]} Bc7 {[%emt 0:05:11]} 16. cxd6 {[%emt 0:02:41]} Bxd6 {[%emt 0:02:35]} 17. a3 {[%emt 0:10:38]} Bf5 {[%emt 0:06:14]} (17... Nf5 $15) 18. d5 $1 $11 {[%emt 0:05:17]} Be5 {[%emt 0:01:59]} 19. Bd4 {[%emt 0:01:04]} (19. Bb6 {is interesting.} Qxb6 20. Rxe5 cxd5 21. Rxe7 Rxe7 22. Ncxd5 Nxd5 23. Nxd5 Qd6 24. Nxe7+ Qxe7 25. Rc1) 19... Bxd4 {[%emt 0:00:00]} (19... Bxf4 {keeps more tension.} 20. Bxf6 gxf6 21. gxf4 cxd5 22. Nxd5 Nxd5 23. Rxe8+ Qxe8 24. Qxd5 Qe6) 20. Qxd4 {[%emt 0:00:47]} Nexd5 {[%emt 0:02:54]} (20... cxd5 {feels hotter.} 21. Nfxd5 Nfxd5 22. Nxd5 Be6) 21. Rxe8+ {[%emt 0:00:48]} Qxe8 {[%emt 0:00:46]} 22. Ncxd5 {[%emt 0:02:18]} cxd5 {[%emt 0:01:08]} 23. Nxd5 {[%emt 0:01:32]} Nxd5 {[%emt 0:00:30]} 24. Qxd5 {[%emt 0:01:49]} Qd7 {[%emt 0:08:04]} 25. g4 {[%emt 0:08:54]} Qxd5 {[%emt 0:00:00]} 26. Bxd5 {[%emt 0:09:00][%mdl 4096] Endgame KRB-KRB} Bd7 {[%emt 0:03:39]} 27. Rc1 {[%emt 0:00:49] aiming for Rc7.} Rc8 {[%emt 0:00:51] Inhibits Rc7.} 28. Rd1 {[%emt 0:02:28]} Rc7 {[%emt 0:00:55]} 29. Kg2 {[%emt 0:00:22]} Kf8 {[%emt 0:01:21]} 30. Re1 {[%emt 0:00:19]} Bc6 {[%emt 0:00:22]} 31. Bxc6 {[%emt 0:03:21]} Rxc6 {[%emt 0:00:37] KR-KR} 32. Re3 {[%emt 0:04:34]} g5 {[%emt 0:06:38]} 33. Kg3 {[%emt 0:02:17]} f6 {[%emt 0:01:10]} 34. f4 {[%emt 0:01:00]} Kf7 {[%emt 0:00:59]} 35. f5 {[%emt 0:06:24]} a5 {[%emt 0:01:03]} 36. bxa5 {[%emt 0:03:20] [#] Hoping for Rb3.} Ra6 {[%emt 0:00:53]} 37. Rb3 {[%emt 0:00:16]} Rxa5 {[%emt 0:00:07]} 38. Rxb7+ {[%emt 0:00:24]} Ke8 {[%emt 0:01:39]} 39. Rb3 {[%emt 0:09:38]} Ra4 {[%emt 0:03:18]} 40. Re3+ {[%emt 0:02:25]} Kd7 {[%emt 0:03:21]} (40... Kf8 $11 {keeps the balance.}) 41. Kg2 $16 {[%emt 0:01:21]} Ra6 {[%emt 0:02:33]} 42. Re6 {[%emt 0:01:03]} Rxe6 {[%emt 0:00:00][%mdl 8192] [#]} (42... Rxa3 $16 43. Rxf6 Ra2+ 44. Kf1 h5) 43. fxe6+ {[%emt 0:00:00]} Kxe6 {[%emt 0:00:11]} 44. a4 {[%emt 0:00:32] Weighted Error Value: White=0.06 (flawless) /Black=0.28 (precise)} 1-0

[Event "Swiss Championship U16 2022"]
[Site "Biel"]
[Date "2022.07.20"]
[Round "6.5"]
[White "Kostov, Kyrill"]
[Black "Papaux, Steve"]
[Result "0-1"]
[ECO "C90"]
[WhiteElo "2008"]
[BlackElo "2031"]
[Annotator "TA"]
[PlyCount "130"]
[EventDate "2022.07.18"]
[EventType "swiss"]
[EventCountry "SUI"]
[SourceTitle "playchess.com"]
[Source "ChessBase"]
[SourceQuality "1"]
[TimeControl "5400+30"]

{[%evp 22,130,-11,-15,-20,-21,0,-27,-6,-34,-36,-39,-25,-33,-29,-53,-39,-58,-48,-58,-41,-60,-47,-62,-43,-70,-49,-98,-37,-143,-37,-98,-31,-25,0,-14,0,-15,63,33,354,303,265,23,41,14,10,0,7,-3,72,22,22,21,35,20,24,32,23,27,72,0,0,0,0,0,8,0,0,0,0,0,0,0,0,0,0,0,0,0,0,0,0,0,0,0,0,-889,-3148,-12835,-12835,-12841,-12841,-12842,-12842,-12843,-12843,-12843,-12844,-12844,-12845,-12845,-12843,-12848,-12848,-12849,-12849,-12850,-12850,-12850,-27999]} 1. e4 {[%emt 0:01:11]} e5 {[%emt 0:00:10]} 2. Nf3 {[%emt 0:00:51]} Nc6 {[%emt 0:00:08]} 3. Bb5 {[%emt 0:01:16][%cal Bf1b5,Bb5a4,Ba4b3][%mdl 32]} a6 {[%emt 0:00:13]} 4. Ba4 {[%emt 0:00:55]} Nf6 {[%emt 0:00:15]} 5. O-O {[%emt 0:01:20]} b5 {[%emt 0:00:12]} 6. Bb3 {[%emt 0:00:41]} Be7 {[%emt 0:00:26]} 7. Re1 {[%emt 0:03:16]} O-O {[%emt 0:00:19]} 8. d3 {[%emt 0:05:20]} d6 {[%emt 0:00:40]} 9. h3 {[%emt 0:02:47]} Na5 {[%emt 0:01:11]} 10. c3 {[%emt 0:04:00]} Nxb3 {[%emt 0:01:26]} 11. axb3 {[%emt 0:03:04]} c5 {[%emt 0:02:54]} 12. Nbd2 {[%emt 0:07:22]} Re8 {[%emt 0:04:53] C90: Closed Ruy Lopez with 7...d6: Early deviations.} 13. Nf1 {[%emt 0:00:00]} Bf8 {[%emt 0:03:39]} 14. Ng3 {[%emt 0:03:59]} g6 {[%emt 0:02:49] Black has an edge.} 15. Bg5 {[%emt 0:21:22]} h6 {[%emt 0:09:01] [#]} 16. Be3 $146 {[%emt 0:04:17]} ({Predecessor:} 16. Bd2 Bg7 17. Qc1 Kh7 18. Be3 Bb7 19. Nh2 Qd7 20. Rf1 Rac8 21. f4 exf4 22. Bxf4 {1-0 (43) Mrvova,A (2160)-Kisonova,K (1902) Prievidza 1998}) 16... Bg7 {[%emt 0:04:28]} 17. Qc1 {[%emt 0:03:19]} Kh7 {[%emt 0:02:48]} 18. Rd1 {[%emt 0:01:08]} Qc7 {[%emt 0:13:42]} 19. Ne1 {[%emt 0:12:18]} Be6 {[%emt 0:18:37]} 20. Qc2 {[%emt 0:03:24]} Nd7 {[%emt 0:04:06]} 21. f3 {[%emt 0:04:10]} d5 {[%emt 0:06:57]} 22. Ne2 {[%emt 0:04:51]} Rec8 {[%emt 0:05:47]} 23. Rdc1 {[%emt 0:02:15]} Qb7 {[%emt 0:01:56]} 24. Qd1 {[%emt 0:03:50]} (24. exd5 $15 Qxd5 25. c4) 24... f5 {[%emt 0:01:50]} (24... b4 $17) 25. Qc2 {[%emt 0:01:48]} ({Better is} 25. exf5 $15 Bxf5 26. Ng3) 25... g5 {[%emt 0:05:15]} ({Black should play} 25... f4 $17 26. exd5 Qxd5) 26. Bf2 {[%emt 0:01:38]} (26. exf5 $15 Bxf5 27. Ng3) 26... fxe4 {[%emt 0:01:33]} (26... dxe4 $1 $17 27. dxe4 f4) 27. fxe4 $15 {[%emt 0:00:37]} dxe4 {[%emt 0:00:15]} 28. dxe4 {[%emt 0:00:46]} Nf6 {[%emt 0:00:23]} 29. Ng3 {[%emt 0:00:51]} h5 {[%emt 0:00:38]} (29... g4 $1 $11) 30. Nf3 $14 {[%emt 0:00:45][%csl LRe5,LRg5]} h4 $2 {[%emt 0:00:41][%mdl 8192]} (30... Bh6 $1 $14) 31. Nf5 {[%emt 0:01:22]} Bh6 {[%emt 0:03:10]} 32. Nxe5 $2 {[%emt 0:01:09] Pair of Knights!} ({White should try} 32. Nxh6 $18 Kxh6 33. Re1 (33. Nxe5 Qxe4 34. Nf3 Qxc2 $11)) 32... Qxe4 $11 {[%emt 0:00:24]} 33. Qxe4 {[%emt 0:00:21]} (33. Nd6 $5 {[%cal Rd6e4]} Qxc2 34. Rxc2 Bxb3 35. Re2 $14) 33... Nxe4 {[%emt 0:00:06]} 34. Nxh6 {[%emt 0:00:11]} Kxh6 {[%emt 0:00:20]} 35. b4 {[%emt 0:00:22]} Nd2 {[%emt 0:02:29]} (35... cxb4 $11 {remains equal.} 36. cxb4 Rxc1+ 37. Rxc1 Rc8 38. Rxc8 Bxc8) 36. Re1 {[%emt 0:00:13]} ({But not} 36. Bxc5 $6 Nb3 $11) (36. Rd1 $16 Ne4 37. bxc5) 36... cxb4 {[%emt 0:00:55]} 37. Nd3 {[%emt 0:00:48]} Bxh3 {[%emt 0:00:38][%cal Ob4c3]} 38. Rad1 $1 {[%emt 0:00:44]} bxc3 {[%emt 0:00:39]} 39. bxc3 {[%emt 0:00:03][%mdl 64] Remove Defender} Rxc3 {[%emt 0:00:29]} 40. Ne5 {[%emt 0:00:35]} Bxg2 {[%emt 0:01:06] Strongly threatening ...Nf3+.} 41. Kxg2 {[%emt 0:00:47]} (41. Rxd2 $16 h3 42. Be3) 41... h3+ {[%emt 0:00:29]} 42. Kh2 {[%emt 0:00:29]} Nf3+ {[%emt 0:00:25]} 43. Nxf3 {[%emt 0:00:04]} Rf8 {[%emt 0:00:58]} 44. Re6+ {[%emt 0:01:07]} Kh5 {[%emt 0:00:12]} 45. Bd4 {[%emt 0:00:25]} Rcxf3 {[%emt 0:00:28] Chess con chili.} 46. Bg7 {[%emt 0:00:35]} Rf2+ {[%emt 0:00:30]} 47. Kg1 {[%emt 0:00:09]} Rg2+ {[%emt 0:00:07]} 48. Kh1 {[%emt 0:00:07]} Rff2 {[%emt 0:00:46]} 49. Rh6+ {[%emt 0:00:20]} Kg4 {[%emt 0:00:05]} 50. Rd4+ {[%emt 0:00:44]} Kf3 {[%emt 0:01:43][%cal Rf2f1]} 51. Rf6+ {[%emt 0:01:01]} Kg3 {[%emt 0:00:43]} 52. Rd3+ {[%emt 0:00:34]} Kg4 {[%emt 0:00:18] ( -> ...Rh2+)} 53. Rd4+ {[%emt 0:00:29]} Rf4 {[%emt 0:00:08]} ({Of course not} 53... Kg3 54. Rd3+ Kg4 55. Rd4+ Rf4 56. Rxa6 $11) 54. Rdxf4+ {[%emt 0:00:24][%mdl 8192]} (54. Rxa6 $11 Rxd4 55. Bxd4) 54... gxf4 $19 {[%emt 0:00:10] Black is clearly winning.} 55. Rxa6 $11 {[%emt 0:00:06][%mdl 4096] Endgame [#] KRB-KR} f3 $1 {[%emt 0:01:07]} 56. Rg6+ {[%emt 0:00:37] [#]} Kf5 $1 {[%emt 0:00:31]} 57. Rf6+ {[%emt 0:00:19]} Ke4 {[%emt 0:00:18]} 58. Re6+ {[%emt 0:00:45]} Kd5 {[%emt 0:00:15]} 59. Re5+ {[%emt 0:00:20]} Kc4 {[%emt 0:00:18]} 60. Re4+ {[%emt 0:00:56]} Kd3 {[%emt 0:00:19]} 61. Rd4+ {[%emt 0:00:40]} Ke3 {[%emt 0:00:29]} 62. Bf6 {[%emt 0:00:47]} f2 {[%emt 0:00:14][%cal Rf2f1]} 63. Rd1 {[%emt 0:00:16]} Ke2 {[%emt 0:00:09]} 64. Rb1 {[%emt 0:00:17]} f1=R+ {[%emt 0:00:10]} 65. Rxf1 {[%emt 0:00:07]} Kxf1 {[%emt 0:00:13] Black used his chance.  Weighted Error Value: White=0.52/Black=0.28 (precise)} 0-1